bitfinex/quotes_SOLUSD_20220302
["timestamp","ask_amount","ask_price","bid_price","bid_amount"]
[1646228946386,14.8206,101.29,101.2,58.07337971]
[1646228946585,14.4688,101.31,101.21,0.12343591]
[1646228946786,14.4688,101.31,101.2,43.25457971]
[1646228946988,22.86263174,101.32,101.2,102.39457971]
[1646228947188,3.95,101.31,101.2,116.09112371]
[1646228947385,18.91263174,101.32,101.2,116.09112371]
[1646228947686,22.86263174,101.34,101.22,157.34047642]
[1646228947886,22.86263174,101.34,101.22,216.71537642]
[1646228948085,2.28210155,101.35,101.23,6.0]
[1646228948286,2.28210155,101.35,101.24,45.20246503]
[1646228948487,2.28210155,101.35,101.24,155.05246503]
[1646228948687,2.28210155,101.35,101.25,14.8096]
[1646228948886,2.28210155,101.35,101.26,53.74573754]
[1646228949108,2.28210155,101.35,101.26,53.99573754]
[1646228949508,2.28210155,101.35,101.26,62.30673754]
[1646228949710,21.44473329,101.35,101.26,62.30673754]
[1646228949907,21.44473329,101.35,101.26,62.05673754]
[1646228950508,21.44473329,101.35,101.26,53.74573754]
[1646228950708,40.54573745,101.35,101.26,53.74573754]
[1646228950910,40.29573745,101.35,101.26,53.74573754]
[1646228951208,14.8128,101.34,101.26,53.74573754]
[1646228951610,17.09490155,101.34,101.26,53.74573754]
[1646228952108,17.34490155,101.34,101.26,53.99573754]
[1646228953011,17.34490155,101.34,101.26,53.74573754]
[1646228953810,36.25753329,101.34,101.26,53.74573754]
[1646228954609,14.8141,101.33,101.26,53.74573754]
[1646228955011,21.19473329,101.32,101.26,53.74573754]
[1646228955410,21.19473329,101.31,101.26,53.74573754]
[1646228955810,2.28210155,101.3,101.26,53.74573754]
[1646228956010,2.53210155,101.3,101.26,53.74573754]
[1646228956812,2.28210155,101.29,101.26,53.74573754]
[1646228957012,2.28210155,101.29,101.22,24.2839]
[1646228958113,17.10210155,101.29,101.23,44.17788555]
[1646228958516,2.28210155,101.29,101.23,44.17788555]
[1646228958813,2.28210155,101.31,101.23,44.17788555]
[1646228959015,2.28210155,101.31,101.23,44.42788555]
[1646228959217,14.8147,101.33,101.23,44.42788555]
[1646228959415,17.09680155,101.33,101.23,44.42788555]
[1646228959816,17.09680155,101.33,101.23,55.96788555]
[1646228960017,17.09680155,101.33,101.23,70.78228555]
[1646228960218,2.28210155,101.33,101.23,227.98228555]
[1646228960418,37.67243174,101.35,101.23,230.21990919]
[1646228960618,18.7598,101.35,101.26,55.42295963]
[1646228960822,21.04190155,101.35,101.26,55.67295963]
[1646228961620,112.9,101.36,101.26,211.60219773]
[1646228961918,112.9,101.36,101.29,60.70592126]
[1646228962117,112.9,101.36,101.29,60.95592126]
[1646228962721,112.9,101.36,101.29,159.01592126]
[1646228962920,113.15,101.36,101.29,159.01592126]
[1646228963119,113.15,101.36,101.3,14.8038]
[1646228963319,113.15,101.36,101.31,51.36512146]
[1646228963722,10.41455382,101.59,101.31,51.61512146]
[1646228963921,10.41455382,101.59,101.37,144.2]
[1646228963922,1.28799075,101.55,101.37,144.2]
[1646228964124,1.28799075,101.55,101.43,5.153]
[1646228964321,8.22107387,101.57,101.44,17.99112087]
[1646228964522,2.881,101.56,101.44,18.24112087]
[1646228965123,8.22107387,101.57,101.45,6.0]
[1646228965326,8.22107387,101.57,101.45,6.25]
[1646228965522,2.884,101.56,101.46,11.54]
[1646228965723,2.884,101.56,101.47,6.0]
[1646228965923,48.63252359,101.56,101.47,17.79]
[1646228966123,8.22107387,101.57,101.47,40.7436]
[1646228966323,8.22107387,101.57,101.47,25.968]
[1646228966525,2.888,101.56,101.47,19.968]
[1646228966824,2.27031522,101.56,101.47,8.178]
[1646228967023,56.50306849,101.56,101.47,8.178]
[1646228967226,2.27031522,101.55,101.47,8.178]
[1646228967424,57.23548029,101.54,101.47,8.178]
[1646228969226,59.50579551,101.54,101.47,8.178]
[1646228970029,79.56890917,101.54,101.47,8.178]
[1646228970226,14.7889,101.53,101.47,8.178]
[1646228970434,50.15174449,101.52,101.47,8.178]
[1646228970628,52.42205971,101.52,101.47,8.178]
[1646228970833,2.27031522,101.51,101.47,8.178]
[1646228971029,51.03910492,101.5,101.42,3.892]
[1646228971430,2.27031522,101.49,101.42,3.892]
[1646228971629,44.96801799,101.48,101.42,4.142]
[1646228974931,47.23833321,101.48,101.42,4.142]
[1646228975131,47.23833321,101.48,101.42,0.25]
[1646228975332,47.23833321,101.48,101.39,23.8242]
[1646228976133,59.76191799,101.48,101.39,23.8242]
[1646228976332,44.96801799,101.48,101.39,23.8242]
[1646228976631,44.96801799,101.48,101.4,0.11666616]
[1646228977230,44.96801799,101.48,101.39,37.29215602]
[1646228977433,2.27031522,101.52,101.41,157.2]
[1646228977730,2.27031522,101.52,101.41,171.2743725]
[1646228977934,17.40851522,101.55,101.41,11.79]
[1646228978133,17.40851522,101.55,101.42,6.0]
[1646228978341,46.38733439,101.54,101.42,6.25]
[1646228978734,2.27031522,101.53,101.42,6.25]
[1646228978935,57.89694021,101.52,101.42,6.25]
[1646228980435,57.89694021,101.52,101.42,19.8682777]
[1646228981036,57.89694021,101.52,101.43,0.33477492]
[1646228981337,57.89694021,101.52,101.42,34.4017777]
[1646228981936,57.89694021,101.52,101.42,6.0]
[1646228982136,60.16725543,101.52,101.41,6.0]
[1646228982339,60.16725543,101.52,101.4,37.9884205]
[1646228983138,60.16725543,101.52,101.4,52.7755205]
[1646228983340,63.05125543,101.52,101.4,52.7755205]
[1646228983537,63.05125543,101.52,101.4,41.2355205]
[1646228984140,63.05125543,101.52,101.4,38.8748]
[1646228985041,14.7888,101.51,101.4,39.1248]
[1646228985242,48.43255043,101.5,101.4,39.1248]
[1646228986442,0.32621787,101.49,101.4,24.3377]
[1646228986743,48.43255043,101.5,101.49,0.11989807]
[1646228988144,63.22145043,101.5,101.49,0.11989807]
[1646228988846,8.22107387,101.57,101.5,17.21845234]
[1646228989044,8.22107387,101.57,101.5,0.25]
[1646228989845,46.72103285,101.56,101.5,0.25]
[1646228990244,46.72103285,101.56,101.49,0.11989807]
[1646228991451,46.72103285,101.56,101.5,2.878]
[1646228991646,46.72103285,101.56,101.49,0.11989807]
[1646228993145,0.2579158,101.55,101.49,0.11989807]
[1646228993346,46.72103285,101.56,101.49,0.11989807]
[1646228994952,0.30117708,101.55,101.49,0.11989807]
[1646228995150,14.7818,101.55,101.49,0.11989807]
[1646228995351,47.41087253,101.54,101.49,0.11989807]
[1646228996154,62.19327253,101.54,101.49,0.11989807]
[1646228996959,47.41087253,101.54,101.49,0.11989807]
[1646228997981,14.7838,101.53,101.49,0.11989807]
[1646228998182,55.82177777,101.52,101.49,0.11989807]
[1646228998581,58.08622216,101.52,101.49,0.11989807]
[1646228998980,55.82177777,101.52,101.49,0.11989807]
[1646229000483,2.26444439,101.56,101.49,0.11989807]
[1646229000687,8.22107387,101.57,101.49,0.11989807]
[1646229001084,8.22107387,101.57,101.49,157.31989807]
[1646229001283,8.22107387,101.57,101.49,159.94724158]
[1646229001489,48.60724351,101.56,101.49,159.94724158]
[1646229001786,48.60724351,101.56,101.49,171.48724158]
[1646229001982,8.22107387,101.57,101.49,171.48724158]
[1646229002183,8.22107387,101.57,101.51,174.40792428]
[1646229002387,0.00107387,101.57,101.53,100.26494141]
[1646229002584,0.00107387,101.57,101.53,0.25]
[1646229002785,0.00107387,101.57,101.53,6.25]
[1646229002987,0.00107387,101.57,101.53,106.45222609]
[1646229003184,0.00107387,101.57,101.53,117.99222609]
[1646229004187,0.00107387,101.57,101.53,132.75992609]
[1646229004390,0.00107387,101.57,101.53,191.89992609]
[1646229004588,0.00107387,101.57,101.54,4.1992958]
[1646229004789,0.00107387,101.57,101.56,159.46431266]
[1646229004993,0.00107387,101.57,101.56,177.25431266]
[1646229005191,0.00107387,101.57,101.56,181.19231266]
[1646229005393,46.30332177,101.68,101.57,0.01892613]
[1646229005593,46.30332177,101.68,101.58,11.54]
[1646229005790,46.30332177,101.68,101.59,6.0]
[1646229005990,46.30332177,101.68,101.59,11.79]
[1646229006192,48.56776616,101.68,101.59,0.25]
[1646229006592,45.29744823,101.65,101.59,0.25]
[1646229006993,47.56189262,101.65,101.57,0.01892613]
[1646229007591,14.7687,101.63,101.57,0.01892613]
[1646229007790,46.16709936,101.62,101.57,0.01892613]
[1646229010194,14.7651,101.66,101.57,0.01892613]
[1646229010397,49.2124,101.69,101.57,109.61892613]
[1646229010596,74.28197647,101.69,101.57,116.05767172]
[1646229010797,74.28197647,101.69,101.57,112.12267172]
[1646229010998,51.47112905,101.69,101.57,112.12267172]
[1646229011198,60.25463171,101.68,101.58,6.0]
[1646229011400,60.25463171,101.68,101.57,0.01892613]
[1646229011605,2.25872905,101.67,101.57,0.01892613]
[1646229011798,73.32038138,101.66,101.57,0.01892613]
[1646229012405,58.55608138,101.66,101.57,111.71734133]
[1646229012599,58.55608138,101.66,101.57,15.74492613]
[1646229012799,58.55608138,101.66,101.57,11.80892613]
[1646229013400,58.55608138,101.66,101.57,11.55892613]
[1646229013601,58.55608138,101.66,101.57,0.01892613]
[1646229013801,0.11968228,101.65,101.57,0.01892613]
[1646229014202,49.57814504,101.65,101.57,0.01892613]
[1646229014404,14.7699,101.62,101.57,0.01892613]
[1646229014805,44.88781489,101.61,101.57,0.01892613]
[1646229018806,145.20654394,101.61,101.57,0.01892613]
[1646229019015,209.02049581,101.6,101.49,0.11989807]
[1646229019207,14.7848,101.52,101.49,0.11989807]
[1646229019406,57.17516811,101.59,101.49,0.11989807]
[1646229019407,54.42881179,101.51,101.49,0.11989807]
[1646229021009,69.21481179,101.51,101.49,0.05373858]
[1646229021313,17.04472905,101.51,101.49,0.00373858]
[1646229021613,2.25872905,101.51,101.39,3.94]
[1646229021809,2.25872905,101.51,101.38,146.6908]
[1646229022009,2.25872905,101.51,101.39,3.943]
[1646229022210,52.7046264,101.5,101.39,3.943]
[1646229022613,54.96335545,101.5,101.39,3.943]
[1646229023009,14.7922,101.47,101.39,3.943]
[1646229023209,59.00712935,101.46,101.39,3.943]
[1646229024411,59.00712935,101.46,101.38,3.943]
[1646229024612,59.00712935,101.46,101.37,3.943]
[1646229025611,59.00712935,101.46,101.37,4.193]
[1646229026015,59.00712935,101.46,101.37,3.943]
[1646229026212,59.00712935,101.46,101.36,23.389]
[1646229026413,59.00712935,101.46,101.33,74.85545025]
[1646229026414,61.2601002,101.46,101.34,3.944]
[1646229026618,61.2601002,101.46,101.35,6.0]
[1646229027013,49.3352,101.44,101.34,3.944]
[1646229027213,50.04931162,101.43,101.33,50.4683]
[1646229027414,52.30228247,101.43,101.33,46.5243]
[1646229027715,52.30228247,101.43,101.33,23.3579]
[1646229027914,52.30228247,101.43,101.34,3.944]
[1646229028114,64.84871162,101.43,101.34,3.944]
[1646229028316,64.84871162,101.43,101.34,4.194]
[1646229028720,50.04931162,101.43,101.34,4.194]
[1646229028915,50.04931162,101.43,101.35,6.0]
[1646229029116,50.04931162,101.43,101.35,6.25]
[1646229029317,50.04931162,101.43,101.35,0.25]
[1646229030020,64.11634916,101.48,101.36,0.27578838]
[1646229030422,64.11634916,101.48,101.36,6.0]
[1646229030628,16.40914916,101.48,101.37,0.15510934]
[1646229030822,60.0784965,101.47,101.36,6.25]
[1646229031023,74.8721965,101.47,101.36,0.25]
[1646229031536,60.0784965,101.47,101.36,0.25]
[1646229031739,60.0784965,101.47,101.35,30.47958099]
[1646229032338,99.40937275,101.51,101.35,56.81248099]
[1646229032543,66.61947085,101.51,101.36,11.43405552]
[1646229032740,66.61947085,101.51,101.37,15.483]
[1646229032939,45.0222019,101.53,101.38,0.43405552]
[1646229032940,23.50287275,101.53,101.38,0.43405552]
[1646229033139,2.25297085,101.53,101.39,17.5812091]
[1646229033341,59.46144894,101.52,101.4,6.43405552]
[1646229033538,59.46144894,101.52,101.41,17.72688219]
[1646229033741,59.46144894,101.52,101.42,6.0]
[1646229033938,59.46144894,101.52,101.42,17.79]
[1646229034139,2.25297085,101.56,101.42,19.82245855]
[1646229034342,109.6,101.59,101.43,163.9513448]
[1646229034539,48.4358,101.57,101.44,117.99389541]
[1646229034739,63.2886,101.57,101.44,118.24389541]
[1646229035040,78.0676,101.57,101.45,14.7794]
[1646229035241,57.81495221,101.56,101.46,6.0]
[1646229035439,57.81495221,101.56,101.46,17.79]
[1646229036540,57.81495221,101.56,101.46,117.79926661]
[1646229036940,57.81495221,101.56,101.46,34.51766661]
[1646229037144,57.81495221,101.56,101.46,11.79]
[1646229037342,60.06792306,101.56,101.46,0.25]
[1646229037541,60.06792306,101.56,101.44,23.1131]
[1646229037744,21.82335876,101.55,101.44,23.1131]
[1646229037941,54.40166283,101.54,101.44,23.1131]
[1646229038141,56.65463368,101.54,101.44,23.1131]
[1646229038946,54.40166283,101.54,101.44,132.7131]
[1646229039241,54.40166283,101.54,101.45,6.0]
[1646229039441,54.40166283,101.54,101.45,6.25]
[1646229039642,54.40166283,101.54,101.45,118.1684222]
[1646229041044,54.40166283,101.54,101.45,132.9482222]
[1646229041447,54.40166283,101.54,101.45,192.0882222]
[1646229041644,54.40166283,101.54,101.45,132.9482222]
[1646229042044,69.18436283,101.54,101.45,112.1684222]
[1646229042245,69.18436283,101.54,101.45,111.9184222]
[1646229042445,54.40166283,101.54,101.44,25.46550881]
[1646229042646,56.65463368,101.54,101.44,25.46550881]
[1646229044049,14.7839,101.53,101.44,25.46550881]
[1646229044248,45.44158373,101.52,101.44,25.71550881]
[1646229046352,45.44158373,101.52,101.44,23.41550892]
[1646229048758,60.22648373,101.52,101.43,23.7156]
[1646229048959,45.44158373,101.52,101.43,23.7156]
[1646229049560,45.44158373,101.52,101.43,26.10849671]
[1646229050359,28.63027085,101.56,101.43,198.34229671]
[1646229050360,63.06877085,101.56,101.43,198.34229671]
[1646229050562,48.0962,101.57,101.45,157.2]
[1646229050761,48.0962,101.57,101.47,159.62314666]
[1646229050961,48.0962,101.57,101.48,19.75278486]
[1646229051159,48.0962,101.57,101.48,20.00278486]
[1646229051360,53.20577054,101.59,101.48,118.06278486]
[1646229051563,60.56190994,101.57,101.48,191.97868486]
[1646229051759,21.82335876,101.62,101.48,191.97868486]
[1646229051960,21.82335876,101.62,101.48,237.95968486]
[1646229052161,115.15235282,101.63,101.48,237.95968486]
[1646229052561,136.97571158,101.63,101.48,237.95968486]
[1646229052761,44.5668175,101.62,101.48,237.95968486]
[1646229052962,44.5668175,101.62,101.48,178.81968486]
[1646229053164,22.1812469,101.61,101.48,74.50968486]
[1646229053364,53.45983872,101.6,101.48,74.50968486]
[1646229053563,0.35788814,101.59,101.48,57.521]
[1646229053765,0.35788814,101.59,101.42,83.12295261]
[1646229053766,22.1812469,101.59,101.42,83.12295261]
[1646229053965,68.89266712,101.58,101.43,17.54]
[1646229054263,14.7828,101.54,101.43,19.60872072]
[1646229054462,45.15298779,101.53,101.43,19.60872072]
[1646229054962,45.15298779,101.53,101.44,14.7834]
[1646229055162,45.15298779,101.53,101.44,15.0334]
[1646229055562,59.93618779,101.53,101.44,15.0334]
[1646229055767,45.15298779,101.53,101.44,15.0334]
[1646229055962,45.15298779,101.53,101.44,113.0934]
[1646229056162,45.15298779,101.53,101.44,115.26556335]
[1646229056362,45.15298779,101.53,101.44,17.20556335]
[1646229056563,59.93628779,101.53,101.44,17.20556335]
[1646229059467,47.40534061,101.53,101.43,6.0]
[1646229060664,55.45147706,101.51,101.43,6.0]
[1646229060866,55.45147706,101.51,101.43,6.25]
[1646229061466,55.45147706,101.51,101.43,6.0]
[1646229062966,57.70382988,101.51,101.43,6.0]
[1646229063166,14.7874,101.5,101.43,6.0]
[1646229063465,56.41883441,101.49,101.43,6.0]
[1646229064066,56.41883441,101.49,101.43,6.25]
[1646229065767,56.41883441,101.49,101.43,6.0]
[1646229065967,56.41883441,101.49,101.42,3.94]
[1646229067168,56.41883441,101.49,101.42,4.19]
[1646229067568,56.41883441,101.49,101.42,3.94]
[1646229069073,56.41883441,101.49,101.42,4.19]
[1646229069870,14.786,101.51,101.43,0.19737564]
[1646229070071,17.21525282,101.54,101.43,14.98187564]
[1646229070272,17.21525282,101.54,101.43,15.23187564]
[1646229070475,14.9629,101.54,101.43,17.20512503]
[1646229070671,14.9629,101.54,101.43,15.0345]
[1646229070872,17.21525282,101.54,101.43,15.0345]
[1646229071072,58.31104122,101.53,101.43,15.0345]
[1646229072173,14.7859,101.51,101.43,15.0345]
[1646229072373,58.90495599,101.5,101.43,15.0345]
[1646229072575,58.90495599,101.5,101.43,0.25]
[1646229072797,58.90495599,101.5,101.42,3.94]
[1646229074179,46.26441386,101.48,101.42,4.19]
[1646229076186,46.26441386,101.48,101.42,3.94]
[1646229077683,46.26441386,101.48,101.42,4.19]
[1646229080184,46.26441386,101.48,101.38,47.4224]
[1646229080607,46.26441386,101.48,101.32,14.8277]
[1646229080608,0.16922662,101.47,101.33,11.54]
[1646229080903,11.70922662,101.47,101.34,6.0]
[1646229081105,47.80599472,101.46,101.34,6.0]
[1646229081304,59.34599472,101.46,101.34,6.0]
[1646229081903,61.59834754,101.46,101.34,6.0]
[1646229082108,14.7993,101.42,101.34,6.25]
[1646229082304,45.12584973,101.41,101.34,6.25]
[1646229082705,49.3308,101.45,101.34,6.0]
[1646229082905,48.5691,101.46,101.34,6.0]
[1646229083406,146.6291,101.46,101.34,6.0]
[1646229083606,14.7977,101.43,101.34,6.0]
[1646229083806,58.69140366,101.42,101.34,6.0]
[1646229084210,58.69140366,101.42,101.32,45.1756]
[1646229084607,14.8023,101.4,101.32,45.1756]
[1646229084807,48.05727038,101.39,101.32,45.1756]
[1646229086009,62.86097038,101.39,101.32,45.1756]
[1646229087011,62.86097038,101.39,101.32,45.4256]
[1646229087210,14.8037,101.39,101.32,45.4256]
[1646229087513,24.0484,101.43,101.33,0.27513161]
[1646229087709,5.612,101.45,101.33,0.27513161]
[1646229087909,5.612,101.45,101.34,11.54]
[1646229088109,5.612,101.45,101.36,0.27513161]
[1646229088313,63.35278679,101.45,101.36,0.27513161]
[1646229088511,63.35278679,101.45,101.35,122.06679004]
[1646229088710,63.35278679,101.45,101.36,14.7933]
[1646229088910,63.35278679,101.45,101.36,15.0433]
[1646229089313,63.35278679,101.45,101.36,0.25]
[1646229090211,63.35278679,101.45,101.34,23.9784]
[1646229090416,63.35278679,101.45,101.35,3.944]
[1646229090615,63.35278679,101.45,101.35,21.00801396]
[1646229091012,63.35278679,101.45,101.35,32.54801396]
[1646229091611,63.35278679,101.45,101.35,30.53]
[1646229091813,78.14768679,101.45,101.35,30.53]
[1646229092414,78.14768679,101.45,101.35,32.4262193]
[1646229092615,78.14768679,101.45,101.36,0.15064645]
[1646229092813,78.14768679,101.45,101.35,20.8862193]
[1646229093013,2.25235282,101.44,101.35,3.944]
[1646229093215,2.25235282,101.44,101.32,26.4882]
[1646229093414,72.07404284,101.43,101.32,22.5442]
[1646229093813,2.25235282,101.42,101.32,22.5442]
[1646229094015,14.8024,101.4,101.32,22.5442]
[1646229094215,49.44388473,101.39,101.32,22.5442]
[1646229094716,49.44388473,101.39,101.32,24.78487145]
[1646229094914,49.44388473,101.39,101.33,3.946]
[1646229095114,49.44388473,101.39,101.33,0.25]
[1646229095513,49.35495282,101.43,101.33,0.25]
[1646229095713,47.1026,101.43,101.34,3.944]
[1646229095916,2.25235282,101.44,101.34,4.194]
[1646229096114,2.25235282,101.43,101.34,0.25]
[1646229096314,14.8006,101.41,101.33,3.944]
[1646229096516,51.94606924,101.4,101.33,3.944]
[1646229096717,51.94606924,101.4,101.32,62.51371894]
[1646229097418,49.3362,101.44,101.32,62.51371894]
[1646229097617,49.3362,101.44,101.32,62.76371894]
[1646229098017,14.7992,101.42,101.32,62.76371894]
[1646229098419,53.64191277,101.41,101.32,62.76371894]
[1646229098819,53.64191277,101.41,101.32,14.8002]
[1646229099019,55.89426559,101.41,101.32,14.8002]
[1646229099218,14.8024,101.4,101.29,3.946]
[1646229099419,55.60594635,101.39,101.29,3.946]
[1646229100219,55.60594635,101.39,101.29,4.196]
[1646229100619,55.60594635,101.39,101.29,0.25]
[1646229100819,55.60594635,101.39,101.3,3.947]
[1646229101019,70.40964635,101.39,101.3,14.8026]
[1646229101222,70.40964635,101.39,101.3,17.28939042]
[1646229102224,70.40964635,101.39,101.3,17.53939042]
[1646229103425,55.60594635,101.39,101.3,115.59939042]
[1646229103624,55.60594635,101.39,101.3,17.53939042]
[1646229103824,55.60594635,101.39,101.3,21.48539042]
[1646229104226,55.60594635,101.39,101.3,178.68539042]
[1646229104426,14.8017,101.41,101.3,174.73939042]
[1646229104626,14.8017,101.41,101.3,178.68539042]
[1646229104826,14.8017,101.41,101.31,6.0]
[1646229105027,14.8017,101.41,101.32,0.32438141]
[1646229105231,14.8017,101.41,101.32,17.39721455]
[1646229105431,47.60170581,101.4,101.32,17.64721455]
[1646229105631,47.60170581,101.4,101.32,17.32283314]
[1646229107529,0.22494039,101.39,101.32,17.32283314]
[1646229107732,0.22494039,101.39,101.32,15.0502]
[1646229108135,47.60170581,101.4,101.32,15.0502]
[1646229110737,47.60170581,101.4,101.32,17.47132635]
[1646229110935,47.60170581,101.4,101.32,17.22132635]
[1646229111637,47.60170581,101.4,101.32,115.28132635]
[1646229111837,47.60170581,101.4,101.33,6.0]
[1646229112038,62.3024,101.43,101.33,23.96709]
[1646229112238,62.3024,101.43,101.33,24.21709]
[1646229112437,47.5041,101.43,101.33,24.21709]
[1646229112638,47.5041,101.43,101.34,6.0]
[1646229112838,14.7993,101.42,101.34,0.25]
[1646229113041,54.83837916,101.41,101.34,6.25]
[1646229113241,54.83837916,101.41,101.34,0.25]
[1646229114061,54.83837916,101.41,101.33,63.7013]
[1646229115345,69.63887916,101.41,101.33,63.7013]
[1646229116752,69.63887916,101.41,101.33,48.9023]
[1646229116950,14.802,101.4,101.33,48.9023]
[1646229117149,48.73423671,101.39,101.33,48.9023]
[1646229117349,48.73423671,101.39,101.32,6.736]
[1646229117953,14.8065,101.37,101.31,3.944]
[1646229118157,50.02277655,101.36,101.26,48.857]
[1646229118552,52.27591635,101.36,101.26,48.857]
[1646229118750,150.33591635,101.36,101.26,48.857]
[1646229119153,161.87591635,101.36,101.26,48.857]
[1646229119552,14.8137,101.32,101.23,38.2384]
[1646229119753,49.60957976,101.31,101.23,14.8127]
[1646229120151,49.60957976,101.31,101.23,15.0627]
[1646229120354,49.60957976,101.31,101.24,6.0]
[1646229120553,49.60957976,101.31,101.24,6.25]
[1646229121153,64.42467976,101.31,101.24,6.0]
[1646229121353,64.42467976,101.31,101.23,6.0]
[1646229122575,64.42467976,101.31,101.23,6.25]
[1646229123776,49.60957976,101.31,101.23,21.0635]
[1646229125682,49.60957976,101.31,101.24,0.16553052]
[1646229125887,49.60957976,101.31,101.23,23.04459704]
[1646229126082,65.0543,101.35,101.25,16.69213085]
[1646229126283,3.948,101.35,101.26,0.22289169]
[1646229126483,3.948,101.35,101.26,20.13884115]
[1646229126785,3.948,101.35,101.26,69.74324115]
[1646229126984,3.947,101.38,101.26,69.52034946]
[1646229127184,53.60696739,101.37,101.26,69.52034946]
[1646229128185,68.41426739,101.37,101.27,14.8063]
[1646229128385,68.41426739,101.37,101.27,15.0563]
[1646229130487,53.60696739,101.37,101.28,100.14109838]
[1646229130686,53.60696739,101.37,101.3,14.9592129]
[1646229130888,46.0001,101.4,101.3,14.9592129]
[1646229130889,46.0001,101.4,101.3,15.2092129]
[1646229131086,46.0001,101.4,101.31,6.0]
[1646229131286,46.0001,101.4,101.31,6.25]
[1646229131686,14.8017,101.41,101.31,6.25]
[1646229131889,60.10372369,101.4,101.31,6.25]
[1646229133087,60.10372369,101.4,101.31,20.1590872]
[1646229133390,60.10372369,101.4,101.31,118.2190872]
[1646229133589,60.10372369,101.4,101.31,20.1590872]
[1646229133795,60.10372369,101.4,101.31,11.79]
[1646229133990,60.10372369,101.4,101.31,0.25]
[1646229134190,62.35709351,101.4,101.3,64.0191]
[1646229134690,62.35709351,101.4,101.3,63.7691]
[1646229135991,14.8051,101.38,101.3,64.0191]
[1646229136390,56.06330845,101.37,101.3,64.0191]
[1646229137893,56.06330845,101.37,101.28,26.346]
[1646229138093,56.06330845,101.37,101.29,6.0]
[1646229138497,56.06330845,101.37,101.28,14.806]
[1646229139094,56.06330845,101.37,101.28,15.056]
[1646229140097,70.86970845,101.37,101.28,15.056]
[1646229142503,70.8040006,101.37,101.28,15.056]
[1646229142702,52.44458877,101.35,101.28,0.25]
[1646229142905,52.44458877,101.35,101.27,6.0]
[1646229143105,52.44458877,101.35,101.27,6.25]
[1646229144007,52.44458877,101.35,101.27,21.0581]
[1646229144409,52.44458877,101.35,101.27,20.8081]
[1646229144711,58.09627649,101.33,101.23,24.3987]
[1646229144909,58.09627649,101.33,101.24,6.0]
[1646229145110,60.34964631,101.33,101.23,24.3987]
[1646229145514,60.34964631,101.33,101.22,549.19701596]
[1646229145710,59.53415308,101.28,101.2,88.822]
[1646229145908,59.69681858,101.28,101.2,77.282]
[1646229146514,59.69681858,101.28,101.21,6.0]
[1646229146709,59.53415308,101.28,101.21,6.0]
[1646229146912,59.53415308,101.28,101.21,6.25]
[1646229147111,74.35395308,101.28,101.17,48.7441]
[1646229147310,76.6073229,101.28,101.17,53.7441]
[1646229147512,74.35395308,101.28,101.17,146.8041]
[1646229147712,74.35395308,101.28,101.17,205.9441]
[1646229147935,74.35395308,101.28,101.17,60.2841]
[1646229148328,74.35395308,101.28,101.19,14.8186]
[1646229148528,74.35395308,101.28,101.2,6.0]
[1646229150029,18.7685,101.3,101.21,0.24200516]
[1646229150228,3.951,101.3,101.21,0.24200516]
[1646229150628,27.2655,101.31,101.2,30.4618]
[1646229151031,44.0534319,101.3,101.2,30.7118]
[1646229151230,45.62585167,101.27,101.2,30.7118]
[1646229152534,45.62585167,101.27,101.2,187.9118]
[1646229152732,27.2655,101.31,101.2,187.9118]
[1646229152933,3.95,101.31,101.21,0.14444588]
[1646229153135,3.95,101.31,101.22,109.6]
[1646229153336,23.4605,101.35,101.24,0.16322094]
[1646229153632,65.00211874,101.34,101.25,14.8108]
[1646229153834,65.00211874,101.34,101.25,15.0608]
[1646229154033,50.19031874,101.34,101.25,15.0608]
[1646229154238,50.19031874,101.34,101.25,0.25]
[1646229154635,14.8139,101.32,101.25,0.25]
[1646229154835,49.94343524,101.31,101.25,0.25]
[1646229155034,49.94343524,101.31,101.24,15.0632]
[1646229155835,49.94343524,101.31,101.24,0.25]
[1646229156037,64.75883524,101.31,101.23,30.0759]
[1646229156235,49.94343524,101.31,101.23,30.0759]
[1646229156436,49.94343524,101.31,101.23,6.0]
[1646229156639,49.94343524,101.31,101.18,11.54]
[1646229156640,43.7344583,101.29,101.18,11.54]
[1646229156839,43.7344583,101.29,101.19,6.0]